[Event "January 2 Early 2024"]
[Site "https://www.chess.com"]
[Date "2024.01.02"]
[Round "3"]
[White "Sokolov, Andrei"]
[Black "Petersson, Kjell"]
[Result "1-0"]
[Board "210"]
[TimeControl "180+1"]
[WhiteFideId "11600306"]
[BlackFideId "1705148"]
[WhiteElo "2382"]
[BlackElo "2155"]
[WhiteTeam "LAT"]
[BlackTeam "SWE"]
[WhiteClock "0:00:06"]
[BlackClock "0:00:07"]

1. d4 {[%clk 0:03:00]}  f5 {[%clk 0:02:59]} 2. Nc3 {[%clk 0:02:59]}  Nf6 {[%clk 0:02:58]} 3. Bg5 {[%clk 0:02:59]}  d5 {[%clk 0:02:59]} 4. Bxf6 {[%clk 0:02:58]}  exf6 {[%clk 0:03:00]} 5. e3 {[%clk 0:02:56]}  Be6 {[%clk 0:03:00]} 6. Bd3 {[%clk 0:02:57]}  Nc6 {[%clk 0:02:57]} 7. a3 {[%clk 0:02:56]}  Qd7 {[%clk 0:02:47]} 8. Na4 {[%clk 0:02:46]}  O-O-O {[%clk 0:02:42]} 9. b3 {[%clk 0:02:39]}  Na5 {[%clk 0:02:27]} 10. Ne2 {[%clk 0:02:30]}  g5 {[%clk 0:02:19]} 11. Nb2 {[%clk 0:02:28]}  h5 {[%clk 0:02:12]} 12. c4 {[%clk 0:02:23]}  h4 {[%clk 0:02:02]} 13. c5 {[%clk 0:02:01]}  g4 {[%clk 0:01:43]} 14. Qc2 {[%clk 0:01:44]}  Bh6 {[%clk 0:01:36]} 15. b4 {[%clk 0:01:39]}  Nc6 {[%clk 0:01:34]} 16. b5 {[%clk 0:01:35]}  Ne7 {[%clk 0:01:35]} 17. Qa4 {[%clk 0:00:39]}  Kb8 {[%clk 0:01:30]} 18. c6 {[%clk 0:00:36]}  Qd6 {[%clk 0:01:24]} 19. cxb7 {[%clk 0:00:31]}  g3 {[%clk 0:01:22]} 20. f4 {[%clk 0:00:21]}  Rhg8 {[%clk 0:00:51]} 21. h3 {[%clk 0:00:19]}  Bf8 {[%clk 0:00:48]} 22. Rc1 {[%clk 0:00:19]}  Bd7 {[%clk 0:00:39]} 23. Qa5 {[%clk 0:00:18]}  Qb6 {[%clk 0:00:39]} 24. Qc3 {[%clk 0:00:13]}  Re8 {[%clk 0:00:37]} 25. Na4 {[%clk 0:00:13]}  Qd6 {[%clk 0:00:36]} 26. Nc5 {[%clk 0:00:13]}  Ng6 {[%clk 0:00:25]} 27. Na6+ {[%clk 0:00:11]}  Kxb7 {[%clk 0:00:26]} 28. Qxc7+ {[%clk 0:00:11]}  Qxc7 {[%clk 0:00:24]} 29. Rxc7+ {[%clk 0:00:11]}  Ka8 {[%clk 0:00:23]} 30. Rxd7 {[%clk 0:00:11]}  Rxe3 {[%clk 0:00:22]} 31. Kd2 {[%clk 0:00:07]}  Re8 {[%clk 0:00:19]} 32. Bxf5 {[%clk 0:00:07]}  Ne7 {[%clk 0:00:18]} 33. Nc7+ {[%clk 0:00:07]}  Kb7 {[%clk 0:00:17]} 34. Nxe8+ {[%clk 0:00:08]}  Kb6 {[%clk 0:00:17]} 35. Be6 {[%clk 0:00:08]}  Rh8 {[%clk 0:00:16]} 36. Bxd5 {[%clk 0:00:07]}  Nxd5 {[%clk 0:00:16]} 37. Rxd5 {[%clk 0:00:07]}  Bxa3 {[%clk 0:00:16]} 38. Nd6 {[%clk 0:00:06]}  Bb4+ {[%clk 0:00:17]} 39. Kd3 {[%clk 0:00:06]}  Rf8 {[%clk 0:00:12]} 40. Nc4+ {[%clk 0:00:07]}  Kb7 {[%clk 0:00:11]} 41. Rb1 {[%clk 0:00:07]}  Be7 {[%clk 0:00:07]} 42. Rd7+ {[%clk 0:00:06]} 1-0

[Event "January 2 Early 2024"]
[Site "https://www.chess.com"]
[Date "2024.01.02"]
[Round "3"]
[White "Chandra, Vania Vindy"]
[Black "Hoffmann, Asa"]
[Result "1-0"]
[Board "212"]
[TimeControl "180+1"]
[WhiteFideId "7103441"]
[BlackFideId "2001470"]
[WhiteElo "2146"]
[BlackElo "2379"]
[WhiteTeam "INA"]
[BlackTeam "USA"]
[WhiteClock "0:00:21"]
[BlackClock "0:00:32"]

1. d4 {[%clk 0:03:00]}  Nf6 {[%clk 0:02:56]} 2. c4 {[%clk 0:03:00]}  c5 {[%clk 0:02:56]} 3. d5 {[%clk 0:02:52]}  e5 {[%clk 0:02:55]} 4. Nc3 {[%clk 0:02:50]}  d6 {[%clk 0:02:55]} 5. e4 {[%clk 0:02:47]}  Be7 {[%clk 0:02:55]} 6. Bd3 {[%clk 0:02:39]}  Nbd7 {[%clk 0:02:54]} 7. Nge2 {[%clk 0:02:31]}  Nf8 {[%clk 0:02:54]} 8. O-O {[%clk 0:02:20]}  Ng6 {[%clk 0:02:53]} 9. f4 {[%clk 0:02:19]}  exf4 {[%clk 0:02:52]} 10. Nxf4 {[%clk 0:02:18]}  Ne5 {[%clk 0:02:52]} 11. Be2 {[%clk 0:02:17]}  O-O {[%clk 0:02:52]} 12. Nh5 {[%clk 0:02:13]}  Nxh5 {[%clk 0:02:46]} 13. Bxh5 {[%clk 0:02:12]}  g6 {[%clk 0:02:42]} 14. Be2 {[%clk 0:02:12]}  Bg5 {[%clk 0:02:42]} 15. Bxg5 {[%clk 0:02:03]}  Qxg5 {[%clk 0:02:41]} 16. Qc1 {[%clk 0:02:04]}  Qxc1 {[%clk 0:02:33]} 17. Raxc1 {[%clk 0:02:03]}  Bd7 {[%clk 0:02:32]} 18. b3 {[%clk 0:01:51]}  a6 {[%clk 0:02:32]} 19. h3 {[%clk 0:01:46]}  b5 {[%clk 0:02:31]} 20. cxb5 {[%clk 0:01:36]}  axb5 {[%clk 0:02:30]} 21. Bxb5 {[%clk 0:01:36]}  Bxb5 {[%clk 0:02:22]} 22. Nxb5 {[%clk 0:01:37]}  Rxa2 {[%clk 0:02:19]} 23. Nxd6 {[%clk 0:01:35]}  Rb8 {[%clk 0:02:05]} 24. Rxc5 {[%clk 0:01:29]}  Rxb3 {[%clk 0:02:04]} 25. Rc8+ {[%clk 0:01:28]}  Kg7 {[%clk 0:02:04]} 26. Ne8+ {[%clk 0:01:27]}  Kh6 {[%clk 0:02:03]} 27. Nd6 {[%clk 0:00:54]}  Rbb2 {[%clk 0:01:57]} 28. Nxf7+ {[%clk 0:00:51]}  Nxf7 {[%clk 0:01:55]} 29. Rxf7 {[%clk 0:00:52]}  Rxg2+ {[%clk 0:01:54]} 30. Kh1 {[%clk 0:00:48]}  Rh2+ {[%clk 0:01:53]} 31. Kg1 {[%clk 0:00:48]}  Rxh3 {[%clk 0:01:47]} 32. Rh8 {[%clk 0:00:42]}  Rg3+ {[%clk 0:01:41]} 33. Kf1 {[%clk 0:00:40]}  Rd3 {[%clk 0:01:36]} 34. Rhxh7+ {[%clk 0:00:34]}  Kg5 {[%clk 0:01:36]} 35. Rf2 {[%clk 0:00:33]}  Ra1+ {[%clk 0:01:24]} 36. Kg2 {[%clk 0:00:31]}  Raa3 {[%clk 0:01:14]} 37. Re2 {[%clk 0:00:23]}  Rg3+ {[%clk 0:01:11]} 38. Kh2 {[%clk 0:00:22]}  Rge3 {[%clk 0:01:06]} 39. Rxe3 {[%clk 0:00:20]}  Rxe3 {[%clk 0:01:05]} 40. Re7 {[%clk 0:00:19]}  Kf6 {[%clk 0:01:02]} 41. Re6+ {[%clk 0:00:19]}  Kf7 {[%clk 0:01:02]} 42. Kg2 {[%clk 0:00:19]}  g5 {[%clk 0:01:02]} 43. Kf2 {[%clk 0:00:19]}  Rb3 {[%clk 0:01:00]} 44. e5 {[%clk 0:00:19]}  Rd3 {[%clk 0:00:58]} 45. Rf6+ {[%clk 0:00:19]}  Kg7 {[%clk 0:00:57]} 46. d6 {[%clk 0:00:19]}  g4 {[%clk 0:00:57]} 47. Rf4 {[%clk 0:00:18]}  g3+ {[%clk 0:00:55]} 48. Kg2 {[%clk 0:00:18]}  Rd5 {[%clk 0:00:55]} 49. Re4 {[%clk 0:00:18]}  Rd3 {[%clk 0:00:51]} 50. e6 {[%clk 0:00:17]}  Kf8 {[%clk 0:00:51]} 51. e7+ {[%clk 0:00:17]}  Ke8 {[%clk 0:00:51]} 52. Re6 {[%clk 0:00:17]}  Rc3 {[%clk 0:00:49]} 53. Rf6 {[%clk 0:00:16]}  Kd7 {[%clk 0:00:48]} 54. Rf8 {[%clk 0:00:15]}  Re3 {[%clk 0:00:47]} 55. Rd8+ {[%clk 0:00:15]}  Kc6 {[%clk 0:00:46]} 56. e8=Q+ {[%clk 0:00:16]}  Rxe8 {[%clk 0:00:45]} 57. Rxe8 {[%clk 0:00:16]}  Kxd6 {[%clk 0:00:45]} 58. Re1 {[%clk 0:00:16]}  Kd5 {[%clk 0:00:45]} 59. Kxg3 {[%clk 0:00:17]}  Kd4 {[%clk 0:00:45]} 60. Kf4 {[%clk 0:00:18]}  Kd3 {[%clk 0:00:45]} 61. Re8 {[%clk 0:00:19]}  Kd2 {[%clk 0:00:43]} 62. Kf3 {[%clk 0:00:19]}  Kc3 {[%clk 0:00:42]} 63. Rd8 {[%clk 0:00:19]}  Kc4 {[%clk 0:00:42]} 64. Ke4 {[%clk 0:00:19]}  Kc5 {[%clk 0:00:42]} 65. Ke5 {[%clk 0:00:20]}  Kc6 {[%clk 0:00:42]} 66. Ke6 {[%clk 0:00:20]}  Kc7 {[%clk 0:00:42]} 67. Rd1 {[%clk 0:00:21]}  Kc8 {[%clk 0:00:41]} 68. Ke7 {[%clk 0:00:21]}  Kb7 {[%clk 0:00:41]} 69. Rc1 {[%clk 0:00:21]}  Kb6 {[%clk 0:00:41]} 70. Kd6 {[%clk 0:00:21]}  Kb5 {[%clk 0:00:41]} 71. Kd5 {[%clk 0:00:20]}  Kb4 {[%clk 0:00:41]} 72. Kd4 {[%clk 0:00:21]}  Kb5 {[%clk 0:00:41]} 73. Rc2 {[%clk 0:00:20]}  Kb4 {[%clk 0:00:40]} 74. Rb2+ {[%clk 0:00:20]}  Ka3 {[%clk 0:00:40]} 75. Rb1 {[%clk 0:00:20]}  Ka2 {[%clk 0:00:32]} 76. Rb8 {[%clk 0:00:21]} 1-0

[Event "January 2 Early 2024"]
[Site "https://www.chess.com"]
[Date "2024.01.02"]
[Round "3"]
[White "th3d4rkness"]
[Black "Kekic, Armin"]
[Result "1-0"]
[Board "215"]
[TimeControl "180+1"]
[BlackFideId "14401274"]
[WhiteElo "2120"]
[BlackElo "2371"]
[BlackTeam "BIH"]
[WhiteClock "0:00:17"]
[BlackClock "0:00:00"]

1. d4 {[%clk 0:03:00]}  d6 {[%clk 0:02:59]} 2. c4 {[%clk 0:03:00]}  e5 {[%clk 0:02:59]} 3. d5 {[%clk 0:02:57]}  Be7 {[%clk 0:02:55]} 4. Nc3 {[%clk 0:02:55]}  Nf6 {[%clk 0:02:55]} 5. e4 {[%clk 0:02:50]}  Nbd7 {[%clk 0:02:56]} 6. f3 {[%clk 0:02:48]}  Nf8 {[%clk 0:02:53]} 7. Be3 {[%clk 0:02:44]}  Ng6 {[%clk 0:02:53]} 8. Qd2 {[%clk 0:02:39]}  h6 {[%clk 0:02:53]} 9. Bd3 {[%clk 0:02:35]}  Nh7 {[%clk 0:02:53]} 10. Nge2 {[%clk 0:02:32]}  Bg5 {[%clk 0:02:52]} 11. g3 {[%clk 0:02:27]}  Bxe3 {[%clk 0:02:51]} 12. Qxe3 {[%clk 0:02:27]}  O-O {[%clk 0:02:50]} 13. O-O-O {[%clk 0:02:27]}  b6 {[%clk 0:02:46]} 14. Kb1 {[%clk 0:02:26]}  a6 {[%clk 0:02:42]} 15. h4 {[%clk 0:02:22]}  f5 {[%clk 0:02:39]} 16. h5 {[%clk 0:02:10]}  Ne7 {[%clk 0:02:36]} 17. f4 {[%clk 0:01:52]}  fxe4 {[%clk 0:02:24]} 18. Bxe4 {[%clk 0:01:51]}  Nf5 {[%clk 0:02:23]} 19. Qd3 {[%clk 0:01:47]}  exf4 {[%clk 0:01:52]} 20. g4 {[%clk 0:01:41]}  f3 {[%clk 0:01:52]} 21. Nc1 {[%clk 0:01:27]}  Qg5 {[%clk 0:01:39]} 22. Bxf5 {[%clk 0:01:21]}  Bxf5 {[%clk 0:01:40]} 23. gxf5 {[%clk 0:01:20]}  Qxf5 {[%clk 0:01:40]} 24. Qxf5 {[%clk 0:01:10]}  Rxf5 {[%clk 0:01:41]} 25. Nd3 {[%clk 0:01:05]}  Ng5 {[%clk 0:01:40]} 26. Rdf1 {[%clk 0:01:01]}  Re8 {[%clk 0:01:37]} 27. Nf2 {[%clk 0:00:59]}  Nf7 {[%clk 0:01:11]} 28. Re1 {[%clk 0:00:56]}  Ne5 {[%clk 0:01:10]} 29. b3 {[%clk 0:00:53]}  Ref8 {[%clk 0:01:07]} 30. Nce4 {[%clk 0:00:52]}  Rf4 {[%clk 0:01:05]} 31. Rhg1 {[%clk 0:00:51]}  R8f5 {[%clk 0:01:04]} 32. Rh1 {[%clk 0:00:51]}  Kf7 {[%clk 0:01:01]} 33. Kc2 {[%clk 0:00:44]}  a5 {[%clk 0:00:59]} 34. Nd3 {[%clk 0:00:36]}  Rg4 {[%clk 0:00:49]} 35. Nxe5+ {[%clk 0:00:35]}  Rxe5 {[%clk 0:00:48]} 36. Kd3 {[%clk 0:00:32]}  Rg2 {[%clk 0:00:43]} 37. Rhf1 {[%clk 0:00:31]}  Rxh5 {[%clk 0:00:27]} 38. Rxf3+ {[%clk 0:00:30]}  Kg8 {[%clk 0:00:27]} 39. Ref1 {[%clk 0:00:31]}  Rxa2 {[%clk 0:00:23]} 40. Rf8+ {[%clk 0:00:29]}  Kh7 {[%clk 0:00:23]} 41. R8f7 {[%clk 0:00:28]}  Rh3+ {[%clk 0:00:22]} 42. R1f3 {[%clk 0:00:25]}  Rxf3+ {[%clk 0:00:18]} 43. Rxf3 {[%clk 0:00:25]}  Kg8 {[%clk 0:00:18]} 44. Ng3 {[%clk 0:00:23]}  a4 {[%clk 0:00:09]} 45. bxa4 {[%clk 0:00:21]}  Rxa4 {[%clk 0:00:06]} 46. Kd4 {[%clk 0:00:19]}  b5 {[%clk 0:00:06]} 47. Rc3 {[%clk 0:00:19]}  Kf7 {[%clk 0:00:00]} 48. Kd3 {[%clk 0:00:17]} 1-0

[Event "January 2 Early 2024"]
[Site "https://www.chess.com"]
[Date "2024.01.02"]
[Round "3"]
[White "Subramanian, Anusha"]
[Black "Kraus, Tomas"]
[Result "0-1"]
[Board "217"]
[TimeControl "180+1"]
[WhiteFideId "477710"]
[BlackFideId "331708"]
[WhiteElo "2110"]
[BlackElo "2362"]
[WhiteTeam "ENG"]
[BlackTeam "CZE"]
[WhiteClock "0:00:43"]
[BlackClock "0:01:20"]

1. d4 {[%clk 0:03:00]}  Nf6 {[%clk 0:02:49]} 2. c4 {[%clk 0:02:57]}  g6 {[%clk 0:02:48]} 3. Nc3 {[%clk 0:02:55]}  d5 {[%clk 0:02:48]} 4. cxd5 {[%clk 0:02:56]}  Nxd5 {[%clk 0:02:48]} 5. e4 {[%clk 0:02:56]}  Nxc3 {[%clk 0:02:49]} 6. bxc3 {[%clk 0:02:57]}  Bg7 {[%clk 0:02:48]} 7. Be3 {[%clk 0:02:57]}  c5 {[%clk 0:02:48]} 8. Bd3 {[%clk 0:02:55]}  Nc6 {[%clk 0:02:44]} 9. Ne2 {[%clk 0:02:53]}  Qa5 {[%clk 0:02:22]} 10. Qd2 {[%clk 0:02:53]}  O-O {[%clk 0:02:23]} 11. O-O-O {[%clk 0:02:44]}  Bg4 {[%clk 0:02:04]} 12. f3 {[%clk 0:02:40]}  Bd7 {[%clk 0:02:02]} 13. g4 {[%clk 0:02:10]}  Rac8 {[%clk 0:01:57]} 14. Kb1 {[%clk 0:02:05]}  b5 {[%clk 0:01:39]} 15. h4 {[%clk 0:01:16]}  b4 {[%clk 0:01:35]} 16. d5 {[%clk 0:01:05]}  bxc3 {[%clk 0:01:34]} 17. Qc2 {[%clk 0:01:02]}  Rb8+ {[%clk 0:01:24]} 18. Kc1 {[%clk 0:00:48]}  Qa3+ {[%clk 0:01:20]} 19. Qb2 {[%clk 0:00:43]}  Qxb2# {[%clk 0:01:20]} 0-1

[Event "January 2 Early 2024"]
[Site "https://www.chess.com"]
[Date "2024.01.02"]
[Round "3"]
[White "Dahlgren, James Allen"]
[Black "Shohat, Yotam"]
[Result "0-1"]
[Board "219"]
[TimeControl "180+1"]
[WhiteFideId "22256873"]
[BlackFideId "2813955"]
[WhiteElo "2106"]
[BlackElo "2347"]
[WhiteTeam "ESP"]
[BlackTeam "ISR"]
[WhiteClock "0:00:00"]
[BlackClock "0:00:10"]

1. d3 {[%clk 0:03:00]}  d5 {[%clk 0:01:51]} 2. f4 {[%clk 0:02:59]}  c5 {[%clk 0:01:49]} 3. Nf3 {[%clk 0:03:00]}  Nc6 {[%clk 0:01:50]} 4. g3 {[%clk 0:03:01]}  b6 {[%clk 0:01:48]} 5. Bg2 {[%clk 0:03:01]}  Bb7 {[%clk 0:01:49]} 6. O-O {[%clk 0:03:02]}  Nf6 {[%clk 0:01:47]} 7. Nbd2 {[%clk 0:03:03]}  e6 {[%clk 0:01:47]} 8. e4 {[%clk 0:03:03]}  Be7 {[%clk 0:01:47]} 9. c3 {[%clk 0:03:00]}  Qc7 {[%clk 0:01:41]} 10. a4 {[%clk 0:02:59]}  O-O {[%clk 0:01:38]} 11. Qc2 {[%clk 0:02:55]}  Rad8 {[%clk 0:01:37]} 12. h3 {[%clk 0:02:50]}  dxe4 {[%clk 0:01:30]} 13. dxe4 {[%clk 0:02:51]}  Ba6 {[%clk 0:01:30]} 14. Re1 {[%clk 0:02:48]}  e5 {[%clk 0:01:27]} 15. f5 {[%clk 0:02:47]}  Bd3 {[%clk 0:01:15]} 16. Qb3 {[%clk 0:02:34]}  Na5 {[%clk 0:01:15]} 17. Qa2 {[%clk 0:02:32]}  c4 {[%clk 0:01:07]} 18. Bf1 {[%clk 0:02:26]}  Bc5+ {[%clk 0:01:04]} 19. Kh2 {[%clk 0:02:19]}  Bf2 {[%clk 0:00:50]} 20. Rd1 {[%clk 0:02:16]}  Bc2 {[%clk 0:00:40]} 21. Be2 {[%clk 0:02:07]}  Bxd1 {[%clk 0:00:40]} 22. Bxd1 {[%clk 0:02:07]}  Be3 {[%clk 0:00:33]} 23. Be2 {[%clk 0:02:02]}  Bxd2 {[%clk 0:00:26]} 24. Nxd2 {[%clk 0:02:00]}  Rd7 {[%clk 0:00:25]} 25. Nxc4 {[%clk 0:01:48]}  Nxc4 {[%clk 0:00:25]} 26. Qxc4 {[%clk 0:01:49]}  Qxc4 {[%clk 0:00:24]} 27. Bxc4 {[%clk 0:01:50]}  Nxe4 {[%clk 0:00:25]} 28. Be3 {[%clk 0:01:50]}  Nd6 {[%clk 0:00:22]} 29. Bb5 {[%clk 0:01:40]}  Nxb5 {[%clk 0:00:20]} 30. axb5 {[%clk 0:01:41]}  g6 {[%clk 0:00:19]} 31. fxg6 {[%clk 0:01:27]}  fxg6 {[%clk 0:00:20]} 32. Kg2 {[%clk 0:01:17]}  Rff7 {[%clk 0:00:21]} 33. Bh6 {[%clk 0:01:10]}  Rd3 {[%clk 0:00:19]} 34. Re1 {[%clk 0:01:05]}  Re7 {[%clk 0:00:18]} 35. Rf1 {[%clk 0:00:37]}  Rf7 {[%clk 0:00:17]} 36. Re1 {[%clk 0:00:38]}  Rd5 {[%clk 0:00:17]} 37. c4 {[%clk 0:00:36]}  Rc5 {[%clk 0:00:16]} 38. b3 {[%clk 0:00:15]}  Rd7 {[%clk 0:00:11]} 39. Rf1 {[%clk 0:00:12]}  Rc8 {[%clk 0:00:11]} 40. Re1 {[%clk 0:00:10]}  Re8 {[%clk 0:00:11]} 41. Kf2 {[%clk 0:00:10]}  Rd3 {[%clk 0:00:12]} 42. Re3 {[%clk 0:00:09]}  e4 {[%clk 0:00:11]} 43. Ke2 {[%clk 0:00:07]}  Rxe3+ {[%clk 0:00:10]} 44. Kxe3 {[%clk 0:00:07]}  Kf7 {[%clk 0:00:11]} 45. h4 {[%clk 0:00:05]}  Re5 {[%clk 0:00:11]} 46. Bf4 {[%clk 0:00:05]}  Re6 {[%clk 0:00:12]} 47. g4 {[%clk 0:00:04]}  h5 {[%clk 0:00:12]} 48. g5 {[%clk 0:00:03]}  Re8 {[%clk 0:00:11]} 49. Kd4 {[%clk 0:00:02]}  Re7 {[%clk 0:00:11]} 50. Be5 {[%clk 0:00:01]}  Ke6 {[%clk 0:00:08]} 51. Bf4 {[%clk 0:00:01]}  Rd7+ {[%clk 0:00:08]} 52. Kxe4 {[%clk 0:00:01]}  Rd1 {[%clk 0:00:09]} 53. Be5 {[%clk 0:00:01]}  Re1+ {[%clk 0:00:09]} 54. Kd4 {[%clk 0:00:00]}  Rxe5 {[%clk 0:00:10]} 0-1

[Event "January 2 Early 2024"]
[Site "https://www.chess.com"]
[Date "2024.01.02"]
[Round "3"]
[White "Seder, Mohammed"]
[Black "Gopal, K.N."]
[Result "0-1"]
[Board "220"]
[TimeControl "180+1"]
[WhiteFideId "11505567"]
[BlackFideId "5001447"]
[WhiteElo "2341"]
[BlackElo "2102"]
[WhiteTeam "PLE"]
[BlackTeam "IND"]
[WhiteClock "0:00:04"]
[BlackClock "0:00:07"]

1. e4 {[%clk 0:03:00]}  c5 {[%clk 0:02:55]} 2. Nf3 {[%clk 0:02:58]}  d6 {[%clk 0:02:55]} 3. c4 {[%clk 0:02:57]}  e5 {[%clk 0:02:51]} 4. Nc3 {[%clk 0:02:56]}  Nc6 {[%clk 0:02:51]} 5. g3 {[%clk 0:02:51]}  g6 {[%clk 0:02:51]} 6. Bg2 {[%clk 0:02:50]}  Bg7 {[%clk 0:02:51]} 7. d3 {[%clk 0:02:49]}  Nge7 {[%clk 0:02:52]} 8. O-O {[%clk 0:02:45]}  O-O {[%clk 0:02:51]} 9. a3 {[%clk 0:02:41]}  a6 {[%clk 0:02:49]} 10. Rb1 {[%clk 0:02:40]}  Rb8 {[%clk 0:02:48]} 11. b4 {[%clk 0:02:39]}  cxb4 {[%clk 0:02:47]} 12. axb4 {[%clk 0:02:40]}  b5 {[%clk 0:02:46]} 13. cxb5 {[%clk 0:02:40]}  axb5 {[%clk 0:02:44]} 14. Qe2 {[%clk 0:02:21]}  Bg4 {[%clk 0:02:39]} 15. Be3 {[%clk 0:02:11]}  Nd4 {[%clk 0:02:31]} 16. Bxd4 {[%clk 0:02:10]}  exd4 {[%clk 0:02:31]} 17. Nd1 {[%clk 0:01:41]}  d5 {[%clk 0:02:16]} 18. h3 {[%clk 0:01:37]}  dxe4 {[%clk 0:02:08]} 19. hxg4 {[%clk 0:01:32]}  exf3 {[%clk 0:02:05]} 20. Qxf3 {[%clk 0:01:24]}  Rb6 {[%clk 0:01:34]} 21. Re1 {[%clk 0:01:17]}  Nc6 {[%clk 0:01:30]} 22. Qd5 {[%clk 0:00:53]}  Qxd5 {[%clk 0:01:26]} 23. Bxd5 {[%clk 0:00:54]}  Ne5 {[%clk 0:01:25]} 24. g5 {[%clk 0:00:36]}  Nxd3 {[%clk 0:01:21]} 25. Re7 {[%clk 0:00:36]}  Rd6 {[%clk 0:01:13]} 26. Bb3 {[%clk 0:00:23]}  Ne5 {[%clk 0:01:11]} 27. f4 {[%clk 0:00:19]}  Nc4 {[%clk 0:01:04]} 28. Rb7 {[%clk 0:00:16]}  d3 {[%clk 0:00:56]} 29. Bxc4 {[%clk 0:00:07]}  bxc4 {[%clk 0:00:55]} 30. Rc1 {[%clk 0:00:07]}  Rc8 {[%clk 0:00:49]} 31. b5 {[%clk 0:00:07]}  c3 {[%clk 0:00:48]} 32. b6 {[%clk 0:00:07]}  c2 {[%clk 0:00:41]} 33. Rc7 {[%clk 0:00:04]}  Rcd8 {[%clk 0:00:28]} 34. b7 {[%clk 0:00:02]}  Bd4+ {[%clk 0:00:16]} 35. Kg2 {[%clk 0:00:02]}  Ba7 {[%clk 0:00:16]} 36. Rc8 {[%clk 0:00:02]}  Kg7 {[%clk 0:00:15]} 37. Rxd8 {[%clk 0:00:01]}  Rxd8 {[%clk 0:00:14]} 38. Nb2 {[%clk 0:00:02]}  Be3 {[%clk 0:00:10]} 39. Nxd3 {[%clk 0:00:01]}  Bxc1 {[%clk 0:00:10]} 40. Nxc1 {[%clk 0:00:02]}  Rb8 {[%clk 0:00:10]} 41. Kf2 {[%clk 0:00:03]}  Rxb7 {[%clk 0:00:10]} 42. Ke2 {[%clk 0:00:04]}  Rd7 {[%clk 0:00:10]} 43. g4 {[%clk 0:00:03]}  Rd1 {[%clk 0:00:09]} 44. Nb3 {[%clk 0:00:03]}  c1=Q {[%clk 0:00:08]} 45. Nxc1 {[%clk 0:00:03]}  Rxc1 {[%clk 0:00:09]} 46. f5 {[%clk 0:00:04]}  gxf5 {[%clk 0:00:08]} 47. gxf5 {[%clk 0:00:05]}  Rc5 {[%clk 0:00:08]} 48. Kf3 {[%clk 0:00:06]}  Rxf5+ {[%clk 0:00:07]} 49. Kg4 {[%clk 0:00:06]}  Rxg5+ {[%clk 0:00:07]} 50. Kh4 {[%clk 0:00:05]}  Ra5 {[%clk 0:00:06]} 51. Kg4 {[%clk 0:00:05]}  Kg6 {[%clk 0:00:07]} 52. Kh4 {[%clk 0:00:05]}  Ra4+ {[%clk 0:00:06]} 53. Kg3 {[%clk 0:00:06]}  Kg5 {[%clk 0:00:07]} 54. Kf3 {[%clk 0:00:07]}  Ra3+ {[%clk 0:00:07]} 55. Ke4 {[%clk 0:00:04]}  Kg4 {[%clk 0:00:07]} 0-1

[Event "January 2 Early 2024"]
[Site "https://www.chess.com"]
[Date "2024.01.02"]
[Round "3"]
[White "Tilahun , Abel Mathewos"]
[Black "Nord, Alexander"]
[Result "1/2-1/2"]
[Board "221"]
[TimeControl "180+1"]
[WhiteFideId "15702391"]
[BlackFideId "1738135"]
[WhiteElo "2068"]
[BlackElo "2337"]
[WhiteTeam "ETH"]
[BlackTeam "SWE"]
[WhiteClock "0:00:20"]
[BlackClock "0:00:12"]

1. d4 {[%clk 0:03:00]}  Nf6 {[%clk 0:02:56]} 2. c4 {[%clk 0:03:00]}  e6 {[%clk 0:02:56]} 3. Nf3 {[%clk 0:03:01]}  b6 {[%clk 0:02:56]} 4. Nc3 {[%clk 0:03:01]}  Bb7 {[%clk 0:02:56]} 5. g3 {[%clk 0:02:58]}  Be7 {[%clk 0:02:56]} 6. Bg2 {[%clk 0:02:58]}  O-O {[%clk 0:02:54]} 7. O-O {[%clk 0:02:58]}  Ne4 {[%clk 0:02:53]} 8. Qc2 {[%clk 0:02:54]}  Nxc3 {[%clk 0:02:53]} 9. Qxc3 {[%clk 0:02:54]}  f5 {[%clk 0:02:40]} 10. Be3 {[%clk 0:02:34]}  d6 {[%clk 0:02:38]} 11. Rac1 {[%clk 0:02:30]}  Nd7 {[%clk 0:02:36]} 12. b4 {[%clk 0:02:26]}  Nf6 {[%clk 0:02:33]} 13. Nd2 {[%clk 0:02:22]}  Bxg2 {[%clk 0:02:31]} 14. Kxg2 {[%clk 0:02:23]}  Qd7 {[%clk 0:02:25]} 15. Kg1 {[%clk 0:02:23]}  d5 {[%clk 0:02:08]} 16. Bg5 {[%clk 0:02:20]}  Rac8 {[%clk 0:01:36]} 17. Bxf6 {[%clk 0:02:15]}  Bxf6 {[%clk 0:01:33]} 18. e3 {[%clk 0:02:08]}  c5 {[%clk 0:01:29]} 19. Qd3 {[%clk 0:01:37]}  cxb4 {[%clk 0:01:17]} 20. cxd5 {[%clk 0:01:35]}  Qxd5 {[%clk 0:01:15]} 21. Qa6 {[%clk 0:01:32]}  Qd7 {[%clk 0:01:03]} 22. Nf3 {[%clk 0:01:17]}  Rc3 {[%clk 0:00:55]} 23. Ne5 {[%clk 0:00:50]}  Bxe5 {[%clk 0:00:53]} 24. dxe5 {[%clk 0:00:51]}  Rfc8 {[%clk 0:00:52]} 25. Rcd1 {[%clk 0:00:49]}  Qc6 {[%clk 0:00:45]} 26. Rd6 {[%clk 0:00:48]}  Qe8 {[%clk 0:00:39]} 27. Rfd1 {[%clk 0:00:41]}  R3c7 {[%clk 0:00:26]} 28. h4 {[%clk 0:00:34]}  h6 {[%clk 0:00:24]} 29. Kg2 {[%clk 0:00:32]}  Kh7 {[%clk 0:00:24]} 30. Qd3 {[%clk 0:00:29]}  Rc6 {[%clk 0:00:17]} 31. Rd7 {[%clk 0:00:27]}  R6c7 {[%clk 0:00:17]} 32. Rd6 {[%clk 0:00:24]}  Rc6 {[%clk 0:00:16]} 33. Qa6 {[%clk 0:00:24]}  R6c7 {[%clk 0:00:12]} 34. Qd3 {[%clk 0:00:20]} 1/2-1/2

[Event "January 2 Early 2024"]
[Site "https://www.chess.com"]
[Date "2024.01.02"]
[Round "3"]
[White "Smirnov, Timofey"]
[Black "Tuleyeva-Aketayeva, Dana"]
[Result "0-1"]
[Board "226"]
[TimeControl "180+1"]
[WhiteFideId "24176427"]
[BlackFideId "13701932"]
[WhiteElo "1979"]
[BlackElo "2320"]
[WhiteTeam "RUS"]
[BlackTeam "KAZ"]
[WhiteClock "0:00:00"]
[BlackClock "0:00:15"]

1. d4 {[%clk 0:03:00]}  Nf6 {[%clk 0:02:58]} 2. Bf4 {[%clk 0:02:59]}  e6 {[%clk 0:02:57]} 3. e3 {[%clk 0:02:57]}  c5 {[%clk 0:02:55]} 4. c3 {[%clk 0:02:56]}  b6 {[%clk 0:02:56]} 5. Nd2 {[%clk 0:02:55]}  Be7 {[%clk 0:02:52]} 6. Ngf3 {[%clk 0:02:46]}  O-O {[%clk 0:02:51]} 7. Bd3 {[%clk 0:02:46]}  Ba6 {[%clk 0:02:50]} 8. Bxa6 {[%clk 0:02:42]}  Nxa6 {[%clk 0:02:50]} 9. O-O {[%clk 0:02:43]}  Nc7 {[%clk 0:02:38]} 10. h3 {[%clk 0:02:42]}  d6 {[%clk 0:02:23]} 11. a4 {[%clk 0:02:37]}  a6 {[%clk 0:02:23]} 12. Re1 {[%clk 0:02:36]}  b5 {[%clk 0:02:23]} 13. axb5 {[%clk 0:02:33]}  axb5 {[%clk 0:02:23]} 14. Qc2 {[%clk 0:02:10]}  Qd7 {[%clk 0:01:55]} 15. b3 {[%clk 0:02:05]}  Qc6 {[%clk 0:01:44]} 16. Qb2 {[%clk 0:02:02]}  h6 {[%clk 0:01:35]} 17. Bh2 {[%clk 0:01:55]}  Rfb8 {[%clk 0:01:19]} 18. Rxa8 {[%clk 0:01:33]}  Rxa8 {[%clk 0:01:17]} 19. Ra1 {[%clk 0:01:34]}  Nfe8 {[%clk 0:00:55]} 20. Qb1 {[%clk 0:00:59]}  Ra6 {[%clk 0:00:52]} 21. Rxa6 {[%clk 0:00:45]}  Qxa6 {[%clk 0:00:51]} 22. Ne4 {[%clk 0:00:32]}  b4 {[%clk 0:00:21]} 23. cxb4 {[%clk 0:00:24]}  cxb4 {[%clk 0:00:20]} 24. Ne1 {[%clk 0:00:19]}  Nd5 {[%clk 0:00:20]} 25. Qd3 {[%clk 0:00:14]}  Qa1 {[%clk 0:00:19]} 26. Qe2 {[%clk 0:00:04]}  f5 {[%clk 0:00:15]} 27. Nd2 {[%clk 0:00:00]}  Nc3 {[%clk 0:00:15]} 0-1